fUST/lending_fUST_20251201
["ID","MTS","AMOUNT","RATE_DAILY","PERIOD"]
[395209377,1764546646807,-500.0,0.00013698,2]
[395209378,1764546646816,-500.0,0.00013698,2]
[395209379,1764546646825,-500.0,0.00013698,2]
[395209380,1764546646834,-500.0,0.00013698,2]
[395209381,1764546646843,-500.0,0.00013698,2]
[395209382,1764546646851,-500.0,0.00013698,2]
[395209383,1764546646860,-500.0,0.00013698,2]
[395209384,1764546646869,-500.0,0.00013698,2]
[395209385,1764546646878,-601.84515769,0.00013698,2]
[395209386,1764546646886,-500.0,0.00013698,2]
[395209387,1764546646895,-1072.13,0.00013698,2]
[395209388,1764546646906,-500.0,0.00013698,2]
[395209389,1764546646914,-500.0,0.00013698,2]
[395209390,1764546646923,-500.0,0.00013698,2]
[395209391,1764546646932,-743.86,0.00013698,2]
[395209392,1764546646941,-500.0,0.00013698,2]
[395209393,1764546646952,-680.22,0.00013698,2]
[395209394,1764546646961,-500.0,0.00013698,2]
[395209395,1764546646970,-500.0,0.00013698,2]
[395209396,1764546646978,-1724.38,0.00013698,2]
[395209397,1764546646987,-3684.97,0.00013698,2]
[395209398,1764546646995,-500.0,0.00013698,2]
[395209399,1764546647004,-500.0,0.00013698,2]
[395209400,1764546647013,-500.0,0.00013698,2]
[395209401,1764546647022,-500.0,0.00013698,2]
[395209402,1764546647030,-500.0,0.00013698,2]
[395209403,1764546647039,-500.0,0.00013698,2]
[395209404,1764546647047,-500.0,0.00013698,2]
[395209405,1764546647056,-501.25389386,0.00013698,2]
[395209406,1764546647064,-500.0,0.00013698,2]
[395209407,1764546647073,-650.67,0.00013698,2]
[395209408,1764546647082,-500.0,0.00013698,2]
[395209409,1764546647091,-500.0,0.00013698,2]
[395209410,1764546647099,-500.0,0.00013698,2]
[395209411,1764546647108,-227.15770958,0.00013698,2]
[395209412,1764546647117,-574.73,0.00013698,2]
[395209413,1764546647126,-500.0,0.00013698,2]
[395209414,1764546647136,-500.0,0.00013698,2]
[395209415,1764546647144,-500.0,0.00013698,2]
[395209416,1764546647153,-1436.42,0.00013698,2]
[395209417,1764546647161,-500.0,0.00013698,2]
[395209418,1764546647170,-500.0,0.00013698,2]
[395209419,1764546647179,-7693.49,0.00013698,2]
[395209420,1764546647187,-500.0,0.00013698,2]
[395209421,1764546647197,-500.0,0.00013698,2]
[395209422,1764546647206,-500.0,0.00013698,2]
[395209423,1764546647215,-592.69,0.00013698,2]
[395209424,1764546647223,-500.0,0.00013698,2]
[395209425,1764546647232,-500.0,0.00013698,2]
[395209426,1764546647241,-500.0,0.00013698,2]
[395209427,1764546647250,-500.0,0.00013698,2]
[395209428,1764546647260,-500.0,0.00013698,2]
[395209429,1764546647269,-500.0,0.00013698,2]
[395209430,1764546647278,-698.36,0.00013698,2]
[395209431,1764546647287,-500.0,0.00013698,2]
[395209432,1764546647296,-500.0,0.00013698,2]
[395209433,1764546647305,-1557.85,0.00013698,2]
[395209434,1764546647314,-500.0,0.00013698,2]
[395209435,1764546647323,-2982.94,0.00013698,2]
[395209436,1764546647332,-500.0,0.00013698,2]
[395209437,1764546647341,-500.0,0.00013698,2]
[395209438,1764546647350,-500.0,0.00013698,2]
[395209439,1764546647360,-4804.24,0.00013698,2]
[395209440,1764546647368,-500.0,0.00013698,2]
[395209441,1764546647377,-500.0,0.00013698,2]
[395209442,1764546647386,-500.0,0.00013698,2]
[395209443,1764546647395,-1699.1,0.00013698,2]
[395209444,1764546647404,-500.0,0.00013698,2]
[395209445,1764546647413,-500.0,0.00013698,2]
[395209446,1764546647424,-500.0,0.00013698,2]
[395209447,1764546647438,-500.0,0.00013698,2]
[395209448,1764546647448,-500.0,0.00013698,2]
[395209449,1764546647457,-1327.57,0.00013698,2]
[395209450,1764546647466,-500.0,0.00013698,2]
[395209451,1764546647475,-500.0,0.00013698,2]
[395209452,1764546647484,-3491.16,0.00013698,2]
[395209453,1764546647494,-500.0,0.00013698,2]
[395209454,1764546647509,-500.0,0.00013698,2]
[395209455,1764546647525,-500.0,0.00013698,2]
[395209456,1764546647534,-460.0,0.00013698,2]
[395209457,1764546647543,-500.0,0.00013698,2]
[395209458,1764546647553,-500.0,0.00013698,2]
[395209459,1764546647562,-562.42848919,0.00013698,2]
[395209460,1764546647571,-500.0,0.00013698,2]
[395209461,1764546647579,-500.0,0.00013698,2]
[395209462,1764546647595,-500.0,0.00013698,2]
[395209463,1764546647604,-500.0,0.00013698,2]
[395209464,1764546647613,-500.0,0.00013698,2]
[395209465,1764546647622,-967.52,0.00013698,2]
[395209466,1764546647631,-500.0,0.00013698,2]
[395209467,1764546647640,-500.0,0.00013698,2]
[395209468,1764546647648,-500.0,0.00013698,2]
[395209469,1764546647657,-500.0,0.00013698,2]
[395209470,1764546647666,-500.0,0.00013698,2]
[395209471,1764546647675,-500.0,0.00013698,2]
[395209472,1764546647684,-500.0,0.00013698,2]
[395209474,1764546647693,-500.0,0.00013698,2]
[395209476,1764546647702,-500.0,0.00013698,2]
[395209478,1764546647712,-500.0,0.00013698,2]
[395209479,1764546647721,-500.0,0.00013698,2]
[395209481,1764546647730,-500.0,0.00013698,2]
[395209482,1764546647739,-500.0,0.00013698,2]
[395209483,1764546647748,-500.0,0.00013698,2]
[395209484,1764546647757,-500.0,0.00013698,2]
[395209485,1764546647766,-500.0,0.00013698,2]
[395209486,1764546647775,-589.46789872,0.00013698,2]
[395209487,1764546647784,-1994.33,0.00013698,2]
[395209488,1764546647793,-500.0,0.00013698,2]
[395209489,1764546647802,-1624.27,0.00013698,2]
[395209490,1764546647811,-692.49,0.00013698,2]
[395209491,1764546647820,-500.0,0.00013698,2]
[395209492,1764546647829,-1067.76,0.00013698,2]
[395209493,1764546647838,-500.0,0.00013698,2]
[395209494,1764546647848,-500.0,0.00013698,2]
[395209496,1764546647857,-500.0,0.00013698,2]
[395209498,1764546647866,-500.0,0.00013698,2]
[395209499,1764546647875,-500.0,0.00013698,2]
[395209500,1764546647884,-500.0,0.00013698,2]
[395209502,1764546647894,-500.0,0.00013698,2]
[395209503,1764546647903,-500.0,0.00013698,2]
[395209504,1764546647912,-500.07,0.00013698,2]
[395209505,1764546647921,-500.0,0.00013698,2]
[395209506,1764546647930,-500.0,0.00013698,2]
[395209507,1764546647939,-4302.71,0.00013698,2]
[395209508,1764546647948,-500.0,0.00013698,2]
[395209509,1764546647958,-500.0,0.00013698,2]
[395209510,1764546647968,-17023.31,0.00013698,2]
[395209511,1764546647977,-973.48,0.00013698,2]
[395209512,1764546647986,-460.46118186,0.00013698,2]
[395209513,1764546647995,-500.0,0.00013698,2]
[395209514,1764546648004,-500.0,0.00013698,2]
[395209515,1764546648013,-500.0,0.00013698,2]
[395209516,1764546648023,-7122.94,0.00013698,2]
[395209517,1764546648032,-500.0,0.00013698,2]
[395209518,1764546648041,-500.0,0.00013698,2]
[395209519,1764546648050,-371.76192671,0.00013698,2]
[395209520,1764546648059,-500.0,0.00013698,2]
[395209521,1764546648069,-500.0,0.00013698,2]
[395209522,1764546648078,-500.0,0.00013698,2]
[395209523,1764546648087,-991.89,0.00013698,2]
[395209524,1764546648097,-2198.94,0.00013698,2]
[395209525,1764546648106,-500.0,0.00013698,2]
[395209526,1764546648115,-500.0,0.00013698,2]
[395209527,1764546648124,-500.0,0.00013698,2]
[395209528,1764546648135,-500.0,0.00013698,2]
[395209529,1764546648144,-1953.92,0.00013698,2]
[395209530,1764546648153,-500.0,0.00013698,2]
[395209531,1764546648162,-666.16,0.00013698,2]
[395209532,1764546648171,-536.58,0.00013698,2]
[395209533,1764546648181,-500.0,0.00013698,2]
[395209534,1764546648191,-500.0,0.00013698,2]
[395209535,1764546648200,-812.86,0.00013698,2]
[395209536,1764546648210,-500.0,0.00013698,2]
[395209537,1764546648219,-500.0,0.00013698,2]
[395209538,1764546648228,-500.0,0.00013698,2]
[395209539,1764546648237,-3659.09,0.00013698,2]
[395209540,1764546648246,-500.0,0.00013698,2]
[395209541,1764546648255,-937.14,0.00013698,2]
[395209542,1764546648264,-500.0,0.00013698,2]
[395209543,1764546648273,-500.0,0.00013698,2]
[395209544,1764546648281,-806.51,0.00013698,2]
[395209545,1764546648290,-500.0,0.00013698,2]
[395209546,1764546648299,-500.0,0.00013698,2]
[395209547,1764546648308,-500.0,0.00013698,2]
[395209548,1764546648317,-625.3,0.00013698,2]
[395209549,1764546648327,-500.0,0.00013698,2]
[395209550,1764546648336,-500.0,0.00013698,2]
[395209551,1764546648346,-500.0,0.00013698,2]
[395209552,1764546648355,-500.0,0.00013698,2]
[395209553,1764546648364,-642.7036594,0.00013698,2]
[395209554,1764546648373,-500.0,0.00013698,2]
[395209555,1764546648382,-883.69,0.00013698,2]
[395209556,1764546648391,-350.36229507,0.00013698,2]
[395209557,1764546648400,-500.0,0.00013698,2]
[395209558,1764546648410,-500.0,0.00013698,2]
[395209559,1764546648419,-2903.81,0.00013698,2]
[395209560,1764546648433,-422.78533992,0.00013698,2]
[395209561,1764546648442,-500.0,0.00013698,2]
[395209562,1764546648451,-1248.41,0.00013698,2]
[395209563,1764546648459,-1839.34,0.00013698,2]
[395209564,1764546648470,-500.0,0.00013698,2]
[395209565,1764546648479,-500.0,0.00013698,2]
[395209566,1764546648488,-500.0,0.00013698,2]
[395209567,1764546648497,-500.0,0.00013698,2]
[395209570,1764546648623,-736.18,0.00013698,2]
[395209571,1764546648634,-500.0,0.00013698,2]
[395209572,1764546648643,-500.0,0.00013698,2]
[395209573,1764546648653,-500.0,0.00013698,2]
[395209574,1764546648661,-722.82,0.00013698,2]
[395209575,1764546648671,-500.0,0.00013698,2]
[395209576,1764546648680,-500.0,0.00013698,2]
[395209577,1764546648690,-500.0,0.00013698,2]
[395209579,1764546648698,-500.0,0.00013698,2]
[395209581,1764546648708,-3384.57,0.00013698,2]
[395209583,1764546648718,-2305.29,0.00013698,2]
[395209584,1764546648728,-500.0,0.00013698,2]
[395209586,1764546648736,-288.6160492,0.00013698,2]
[395209588,1764546648745,-500.0,0.00013698,2]
[395209589,1764546648754,-566.73,0.00013698,2]
[395209590,1764546648763,-5889.87,0.00013698,2]
[395209591,1764546648772,-500.0,0.00013698,2]
[395209593,1764546648781,-500.0,0.00013698,2]
[395209595,1764546648789,-500.0,0.00013698,2]
[395209597,1764546648799,-1307.73,0.00013698,2]
[395209599,1764546648807,-592.28066612,0.00013698,2]
[395209600,1764546648816,-1277.24,0.00013698,2]
[395209601,1764546648825,-500.0,0.00013698,2]
[395209602,1764546648835,-500.0,0.00013698,2]
[395209603,1764546648844,-500.0,0.00013698,2]
[395209604,1764546648853,-500.0,0.00013698,2]
[395209605,1764546648862,-500.0,0.00013698,2]
[395209606,1764546648871,-2462.84,0.00013698,2]
[395209607,1764546648880,-500.0,0.00013698,2]
[395209608,1764546648890,-500.0,0.00013698,2]
[395209609,1764546648899,-3186.44,0.00013698,2]
[395209610,1764546648908,-3100.68,0.00013698,2]
[395209611,1764546648917,-500.0,0.00013698,2]
[395209612,1764546648925,-500.0,0.00013698,2]
[395209613,1764546648934,-500.0,0.00013698,2]
[395209614,1764546648943,-500.0,0.00013698,2]
[395209615,1764546648953,-2751.59,0.00013698,2]
[395209616,1764546648963,-325.61384056,0.00013698,2]
[395209617,1764546648973,-1366.61,0.00013698,2]
[395209618,1764546648982,-183.53271699,0.00013698,2]
[395209619,1764546648992,-500.0,0.00013698,2]
[395209620,1764546649000,-396.13053107,0.00013698,2]
[395209621,1764546649010,-326.4796838,0.00013698,2]
[395209622,1764546649019,-2803.44,0.00013698,2]
[395209623,1764546649028,-500.0,0.00013698,2]
[395209624,1764546649037,-500.0,0.00013698,2]
[395209625,1764546649046,-793.21,0.00013698,2]
[395209626,1764546649055,-415.59445898,0.00013698,2]
[395209627,1764546649064,-500.0,0.00013698,2]
[395209628,1764546649073,-500.0,0.00013698,2]
[395209629,1764546649083,-3244.25,0.00013698,2]
[395209630,1764546649094,-2093.34,0.00013698,2]
[395209631,1764546649103,-500.0,0.00013698,2]
[395209632,1764546649113,-605.29,0.00013698,2]
[395209633,1764546649122,-500.0,0.00013698,2]
[395209634,1764546649131,-510.33288887,0.00013698,2]
[395209635,1764546649139,-997.88,0.00013698,2]
[395209636,1764546649149,-500.0,0.00013698,2]
[395209637,1764546649158,-500.0,0.00013698,2]
[395209638,1764546649167,-6663.38,0.00013698,2]
[395209639,1764546649177,-500.0,0.00013698,2]
[395209640,1764546649186,-500.0,0.00013698,2]
[395209641,1764546649196,-546.68,0.00013698,2]
[395209642,1764546649206,-3206.39,0.00013698,2]
[395209643,1764546649215,-500.0,0.00013698,2]
[395209644,1764546649224,-500.0,0.00013698,2]
[395209645,1764546649233,-500.0,0.00013698,2]
[395209646,1764546649242,-10962.07,0.00013698,2]
[395209647,1764546649251,-2081.16,0.00013698,2]
[395209648,1764546649261,-500.0,0.00013698,2]
[395209649,1764546649270,-500.0,0.00013698,2]
[395209650,1764546649279,-500.0,0.00013698,2]
[395209651,1764546649288,-264.3288016,0.00013698,2]
[395209652,1764546649298,-500.0,0.00013698,2]
[395209653,1764546649307,-500.0,0.00013698,2]
[395209654,1764546649316,-500.0,0.00013698,2]
[395209655,1764546649325,-3738.35,0.00013698,2]
[395209656,1764546649334,-500.0,0.00013698,2]
[395209657,1764546649343,-8512.06,0.00013698,2]
[395209658,1764546649352,-500.0,0.00013698,2]
[395209659,1764546649362,-665.76,0.00013698,2]
[395209660,1764546649371,-500.0,0.00013698,2]
[395209661,1764546649381,-489.40573199,0.00013698,2]
[395209662,1764546649390,-500.0,0.00013698,2]
[395209663,1764546649399,-500.0,0.00013698,2]
[395209664,1764546649408,-818.82,0.00013698,2]
[395209665,1764546649417,-1983.2,0.00013698,2]
[395209666,1764546649429,-500.0,0.00013698,2]
[395209667,1764546649438,-500.0,0.00013698,2]
[395209668,1764546649447,-878.37,0.00013698,2]
[395209669,1764546649456,-500.0,0.00013698,2]
[395209670,1764546649467,-500.0,0.00013698,2]
[395209671,1764546649476,-503.03802596,0.00013698,2]
[395209672,1764546649485,-500.0,0.00013698,2]
[395209673,1764546649494,-3523.6,0.00013698,2]
[395209674,1764546649505,-500.0,0.00013698,2]
[395209675,1764546649515,-1398.71,0.00013698,2]
[395209676,1764546649524,-500.0,0.00013698,2]
[395209677,1764546649533,-500.0,0.00013698,2]
[395209678,1764546649542,-500.0,0.00013698,2]
[395209679,1764546649551,-500.0,0.00013698,2]
[395209680,1764546649560,-515.11,0.00013698,2]
[395209681,1764546649569,-500.0,0.00013698,2]
[395209682,1764546649578,-500.0,0.00013698,2]
[395209683,1764546649587,-984.46,0.00013698,2]
[395209684,1764546649596,-891.78,0.00013698,2]
[395209685,1764546649605,-500.0,0.00013698,2]
[395209686,1764546649614,-500.0,0.00013698,2]
[395209687,1764546649623,-500.0,0.00013698,2]
[395209688,1764546649631,-855.59,0.00013698,2]
[395209689,1764546649640,-500.0,0.00013698,2]
[395209690,1764546649649,-1635.86,0.00013698,2]
[395209691,1764546649658,-500.0,0.00013698,2]
[395209692,1764546649667,-500.0,0.00013698,2]
[395209693,1764546649676,-2967.73,0.00013698,2]
[395209694,1764546649685,-856.16,0.00013698,2]
[395209695,1764546649694,-500.0,0.00013698,2]
[395209696,1764546649702,-529.39397215,0.00013698,2]
[395209697,1764546649711,-500.0,0.00013698,2]
[395209698,1764546649720,-555.13,0.00013698,2]
[395209699,1764546649729,-737.47,0.00013698,2]
[395209700,1764546649738,-167.06,0.00013698,2]
[395209701,1764546649747,-1079.66,0.00013698,2]
[395209702,1764546649756,-500.0,0.00013698,2]
[395209703,1764546649765,-6277.43,0.00013698,2]
[395209704,1764546649774,-4264.11,0.00013698,2]
[395209705,1764546649783,-894.23,0.00013698,2]
[395209706,1764546649792,-500.0,0.00013698,2]
[395209707,1764546649801,-851.88,0.00013698,2]
[395209708,1764546649810,-500.0,0.00013698,2]
[395209709,1764546649818,-500.0,0.00013698,2]
[395209710,1764546649827,-500.0,0.00013698,2]
[395209711,1764546649836,-2029.56,0.00013698,2]
[395209712,1764546649845,-2066.95,0.00013698,2]
[395209713,1764546649854,-2479.33,0.00013698,2]
[395209714,1764546649863,-500.0,0.00013698,2]
[395209715,1764546649872,-500.0,0.00013698,2]
[395209716,1764546649881,-2923.79,0.00013698,2]
[395209717,1764546649890,-500.0,0.00013698,2]
[395209718,1764546649899,-2928.27,0.00013698,2]
[395209719,1764546649908,-500.0,0.00013698,2]
[395209720,1764546649916,-500.0,0.00013698,2]
[395209721,1764546649925,-618.670357,0.00013698,2]
[395209722,1764546649934,-1474.63,0.00013698,2]
[395209723,1764546649944,-2800.83,0.00013698,2]
[395209724,1764546649953,-500.0,0.00013698,2]
[395209725,1764546649962,-20404.27,0.00013698,2]
[395209726,1764546649971,-500.0,0.00013699,2]
[395209727,1764546649979,-500.0,0.00013699,2]
[395209728,1764546649988,-500.0,0.00013699,2]
[395209729,1764546649997,-500.0,0.00013699,2]
[395209730,1764546650006,-500.0,0.00013699,2]
[395209731,1764546650015,-500.0,0.00013699,2]
[395209732,1764546650024,-500.0,0.00013699,2]
[395209733,1764546650033,-500.0,0.00013699,2]
[395209734,1764546650042,-500.0,0.00013699,2]
[395209735,1764546650051,-376.0,0.00013699,2]
[395209736,1764546650060,-500.0,0.00013699,2]
[395209737,1764546650069,-500.0,0.00013699,2]
[395209738,1764546650078,-500.0,0.00013699,2]
[395209739,1764546650087,-500.0,0.00013699,2]
[395209740,1764546650096,-500.0,0.00013699,2]
[395209741,1764546650106,-500.0,0.00013699,2]
[395209742,1764546650114,-500.0,0.00013699,2]
[395209743,1764546650123,-349.86887119,0.00013699,2]
[395209744,1764546650132,-248.969997,0.00013699,2]
[395209745,1764546650142,-1000.0,0.00013699,2]
[395209746,1764546650151,-1500.0,0.00013699,2]
[395209747,1764546650160,-151.821289,0.00013699,2]
[395209748,1764546650168,-770.316004,0.00013699,2]
[395209749,1764546650177,-770.316004,0.00013699,2]
[395209750,1764546650187,-770.316004,0.00013699,2]
[395209751,1764546650195,-770.316004,0.00013699,2]
[395209752,1764546650205,-770.316004,0.00013699,2]
[395209753,1764546650214,-770.316004,0.00013699,2]
[395209754,1764546650222,-770.316004,0.00013699,2]
[395209755,1764546650232,-770.316004,0.00013699,2]
[395209756,1764546650241,-770.316004,0.00013699,2]
[395209757,1764546650250,-770.316004,0.00013699,2]
[395209758,1764546650259,-770.316004,0.00013699,2]
[395209759,1764546650268,-770.316004,0.00013699,2]
[395209760,1764546650277,-770.316004,0.00013699,2]
[395209761,1764546650286,-770.316004,0.00013699,2]
[395209762,1764546650295,-770.316004,0.00013699,2]
[395209763,1764546650305,-770.316004,0.00013699,2]
[395209764,1764546650314,-770.316004,0.00013699,2]
[395209765,1764546650323,-770.316004,0.00013699,2]
[395209766,1764546650332,-770.316004,0.00013699,2]
[395209767,1764546650342,-770.315999,0.00013699,2]
[395209768,1764546650351,-500.0,0.00013699,2]
[395209769,1764546650360,-500.0,0.00013699,2]
[395209770,1764546650370,-500.0,0.00013699,2]
[395209771,1764546650379,-183.77391398,0.00013699,2]
[395209772,1764546650388,-500.0,0.00013699,2]
[395209773,1764546650397,-500.0,0.00013699,2]
[395209774,1764546650406,-500.0,0.00013699,2]
[395209775,1764546650415,-500.0,0.00013699,2]
[395209776,1764546650424,-500.0,0.00013699,2]
[395209777,1764546650435,-205.10530702,0.00013699,2]
[395209778,1764546650444,-500.0,0.00013699,2]
[395209779,1764546650453,-500.0,0.00013699,2]
[395209780,1764546650462,-500.0,0.00013699,2]
[395209781,1764546650470,-500.0,0.00013699,2]
[395209782,1764546650479,-249.1876258,0.00013699,2]
[395209783,1764546650488,-605.17368338,0.00013699,2]
[395209784,1764546650498,-406.82654529,0.00013699,2]
[395209785,1764546650509,-500.0,0.00013699,2]
[395209786,1764546650518,-500.0,0.00013699,2]
[395209787,1764546650527,-500.0,0.00013699,2]
[395209788,1764546650536,-500.36722663,0.00013699,2]
[395209789,1764546650545,-500.0,0.00013699,2]
[395209790,1764546650554,-500.0,0.00013699,2]
[395209791,1764546650562,-500.0,0.00013699,2]
[395209792,1764546650571,-184.57621683,0.00013699,2]
[395209793,1764546650580,-500.0,0.00013699,2]
[395209794,1764546650589,-500.0,0.00013699,2]
[395209795,1764546650598,-500.0,0.00013699,2]
[395209796,1764546650607,-500.0,0.00013699,2]
[395209797,1764546650616,-500.0,0.00013699,2]
[395209798,1764546650625,-500.0,0.00013699,2]
[395209799,1764546650634,-500.37818065,0.00013699,2]
[395209800,1764546650643,-500.0,0.00013699,2]
[395209801,1764546650652,-500.0,0.00013699,2]
[395209802,1764546650661,-500.0,0.00013699,2]
[395209803,1764546650670,-500.0,0.00013699,2]
[395209804,1764546650679,-500.0,0.00013699,2]
[395209805,1764546650687,-500.0,0.00013699,2]
[395209806,1764546650696,-500.0,0.00013699,2]
[395209807,1764546650706,-207.6762057,0.00013699,2]
[395209808,1764546650715,-500.0,0.00013699,2]
[395209809,1764546650838,-500.0,0.00013699,2]
[395209810,1764546650847,-500.0,0.00013699,2]
[395209811,1764546650856,-500.0,0.00013699,2]
[395209812,1764546650865,-500.0,0.00013699,2]
[395209813,1764546650874,-500.0,0.00013699,2]
[395209814,1764546650883,-501.1017389,0.00013699,2]
[395209815,1764546650892,-500.0,0.00013699,2]
[395209816,1764546650901,-500.0,0.00013699,2]
[395209817,1764546650910,-500.0,0.00013699,2]
[395209818,1764546650919,-500.0,0.00013699,2]
[395209819,1764546650928,-500.28594406,0.00013699,2]
[395209820,1764546650937,-500.0,0.00013699,2]
[395209821,1764546650946,-500.0,0.00013699,2]
[395209822,1764546650955,-500.0,0.00013699,2]
[395209823,1764546650964,-158.89345516,0.00013699,2]
[395209824,1764546650973,-500.0,0.00013699,2]
[395209825,1764546650982,-500.0,0.00013699,2]
[395209826,1764546650991,-500.0,0.00013699,2]
[395209827,1764546651000,-500.0,0.00013699,2]
[395209828,1764546651009,-500.0,0.00013699,2]
[395209829,1764546651017,-158.28774007,0.00013699,2]
[395209830,1764546651026,-500.0,0.00013699,2]
[395209831,1764546651035,-500.0,0.00013699,2]
[395209832,1764546651044,-500.0,0.00013699,2]
[395209833,1764546651053,-500.0,0.00013699,2]
[395209834,1764546651061,-500.0,0.00013699,2]
[395209835,1764546651071,-192.2491804,0.00013699,2]
[395209836,1764546651079,-500.0,0.00013699,2]
[395209837,1764546651088,-500.0,0.00013699,2]
[395209838,1764546651097,-500.0,0.00013699,2]
[395209839,1764546651107,-500.0,0.00013699,2]
[395209840,1764546651116,-500.0,0.00013699,2]
[395209841,1764546651127,-500.0,0.00013699,2]
[395209842,1764546651136,-536.85052143,0.00013699,2]
[395209843,1764546651146,-500.0,0.00013699,2]
[395209844,1764546651156,-500.0,0.00013699,2]
[395209845,1764546651166,-500.0,0.00013699,2]
[395209846,1764546651176,-306.65032954,0.00013699,2]
[395209847,1764546651185,-306.53121514,0.00013699,2]
[395209848,1764546651195,-151.0,0.000137,2]
[395209849,1764546651205,-151.0,0.000137,2]
[395209850,1764546651215,-151.0,0.000137,2]
[395209851,1764546651224,-151.0,0.000137,2]
[395209852,1764546651233,-1000.0,0.00013733,2]
[395209853,1764546651242,-168.0,0.00013789,2]
[395209854,1764546651251,-151.0,0.000138,2]
[395209855,1764546651261,-151.0,0.000138,2]
[395209856,1764546651270,-151.0,0.000138,2]
[395209857,1764546651279,-151.0,0.000138,2]
[395209858,1764546651288,-151.0,0.000138,2]
[395209859,1764546651299,-151.0,0.000138,2]
[395209860,1764546651311,-151.0,0.000138,2]
[395209861,1764546651321,-151.0,0.000138,2]
[395209862,1764546651330,-1000.0,0.00013821,2]
[395209863,1764546651339,-507.98101226,0.00013821,2]
[395209864,1764546651349,-1000.0,0.00013821,2]
[395209865,1764546651358,-1000.0,0.00013821,2]
[395209866,1764546651368,-1000.0,0.00013821,2]
[395209867,1764546651377,-1000.0,0.00013821,2]
[395209868,1764546651386,-1000.0,0.00013821,2]
[395209869,1764546651395,-166.22185447,0.00013821,2]
[395209870,1764546651405,-988.74629729,0.00013821,2]
[395209871,1764546651414,-1000.0,0.00013821,2]
[395209872,1764546651427,-1000.0,0.00013821,2]
[395209873,1764546651436,-1000.0,0.00013821,2]
[395209874,1764546651446,-1000.0,0.00013821,2]
[395209875,1764546651456,-1000.0,0.00013821,2]
[395209876,1764546651467,-151.0,0.000139,2]
[395209877,1764546651478,-151.0,0.000139,2]
[395209878,1764546651489,-151.0,0.000139,2]
[395209879,1764546651499,-151.0,0.000139,2]
[395209880,1764546651509,-151.0,0.000139,2]
[395209881,1764546651519,-151.0,0.000139,2]
[395209882,1764546651529,-151.0,0.000139,2]
[395209883,1764546651538,-151.0,0.000139,2]
[395209884,1764546651547,-151.0,0.000139,2]
[395209885,1764546651556,-151.0,0.000139,2]
[395209886,1764546651565,-151.0,0.000139,2]
[395209887,1764546651574,-151.0,0.000139,2]
[395209888,1764546651583,-720.0,0.00013916,2]
[395209889,1764546651591,-200.0,0.00013971,2]
[395209890,1764546651600,-200.0,0.00013971,2]
[395209891,1764546651610,-200.0,0.00013971,2]
[395209892,1764546651619,-160.0,0.00013971,2]
[395209893,1764546651628,-215.93040941,0.00013971,2]
[395209894,1764546651637,-500.0,0.00013972,2]